[Event "FIDE CB Open 2022"]
[Site "Ceske Budejovice"]
[Date "2022.07.03"]
[Round "3.10"]
[White "Hurtik, Matej"]
[Black "Toman, Ondrej"]
[Result "0-1"]
[ECO "B12"]
[WhiteElo "2018"]
[BlackElo "2276"]
[Annotator "TA"]
[PlyCount "110"]
[EventDate "2022.07.01"]
[EventType "swiss"]
[EventCountry "CZE"]
[SourceTitle "playchess.com"]
[Source "ChessBase"]
[SourceQuality "1"]
[TimeControl "40/5400+30:1800+30"]

{[%evp 13,110,-29,-8,-43,-23,-16,-27,-81,-62,-116,-114,-115,-125,-114,-72,-93,-78,-112,-111,-112,-101,-98,-99,-101,-87,-93,-72,-113,-91,-67,-66,-101,-66,-135,-82,-83,-98,-115,-122,-198,-198,-186,-188,-189,-53,-53,-44,-81,-62,-83,-75,-245,-242,-279,-148,-144,-114,-103,-101,-92,-92,-128,-142,-131,-122,-563,-548,-522,-445,-464,-447,-514,-502,-474,-477,-535,-493,-744,-727,-816,-784,-747,-375,-746,-551,-622,-659,-814,-806,-1135,-1079,-29985,-29986,-29986,-29987,-29992,-29993,-29993,-29994]} 1. e4 {[%emt 0:00:06]} c6 {[%emt 0:00:06][%cal Bc7c6,Bc6c5][%mdl 32]} 2. d4 {[%emt 0:00:16]} d5 {[%emt 0:00:02]} 3. e5 {[%emt 0:00:08]} Bf5 {[%emt 0:00:16]} 4. Nc3 {[%emt 0:01:01]} e6 {[%emt 0:00:08]} 5. g4 {[%emt 0:00:47]} Bg6 {[%emt 0:00:30]} 6. Nge2 {[%emt 0:00:30]} c5 {[%emt 0:02:01]} 7. Be3 {[%emt 0:01:09]} Nc6 {[%emt 0:01:35]} 8. f4 {[%emt 0:01:22] B12: Caro-Kann: Advance Variation.} h5 {[%emt 0:02:15]} 9. f5 $1 {[%emt 0:01:46]} exf5 {[%emt 0:00:49]} 10. g5 {[%emt 0:00:41] [#]} (10. gxf5 $11 Bxf5 11. Bg2) 10... cxd4 $1 $17 {[%emt 0:02:23]} 11. Nxd4 {[%emt 0:02:56]} (11. Bxd4 $15 Bb4 12. Qd2) 11... Bb4 {[%emt 0:02:41] [#]} 12. Qd2 $146 {[%emt 0:24:57]} ({Predecessor:} 12. Bg2 Nge7 13. O-O O-O 14. Nde2 Nxe5 15. Nxd5 Ng4 16. Nxb4 Nxe3 17. Qxd8 Raxd8 18. Rf3 Nxg2 19. Kxg2 {0-1 (30) Vlassov,N (2493)-Khairullin,I (2629) Moscow 2015}) 12... Nge7 {[%emt 0:05:05]} (12... Nxe5 $6 13. Bf4 (13. a3 Ba5 $11) 13... Nc6 14. O-O-O $11 (14. Nxc6 bxc6 15. Qd4 Qe7+ 16. Kd2 Kf8 $17)) 13. a3 {[%emt 0:15:30]} Bxc3 {[%emt 0:07:48]} 14. Qxc3 {[%emt 0:00:02]} O-O {[%emt 0:00:11]} (14... Nxe5 $6 15. Bf4 Rc8 16. Qb4 $11) 15. Nxc6 {[%emt 0:05:04]} Nxc6 {[%emt 0:03:16]} 16. O-O-O {[%emt 0:00:39]} Rc8 {[%emt 0:01:48]} 17. Bf4 {[%emt 0:05:42]} d4 {[%emt 0:09:59]} 18. Qc5 {[%emt 0:13:52]} Na5 {[%emt 0:16:56]} 19. Qd6 {[%emt 0:00:07]} Qe8 {[%emt 0:00:05] Inhibits Bb5.} 20. Qb4 {[%emt 0:06:31] Inhibits Qa4.} Qc6 {[%emt 0:04:58][%csl Gc8][%cal Rc6c2]} 21. Bd3 {[%emt 0:02:20]} Qd5 $36 {[%emt 0:00:02][%mdl 2048] Black has some pressure.} 22. Kb1 {[%emt 0:01:13]} Rc5 {[%emt 0:04:50]} 23. Qa4 {[%emt 0:12:17] [#]} (23. Rhe1 $15) 23... Nc6 {[%emt 0:01:41]} (23... Nc4 $142 $1 24. Rhe1 a5) 24. Rhe1 {[%emt 0:01:02]} Nd8 {[%emt 0:13:16]} 25. Qb3 {[%emt 0:02:05]} (25. Qxa7 Ne6 26. Rf1 h4 $11) 25... Qc6 {[%emt 0:02:50]} 26. Qb4 {[%emt 0:00:28]} (26. Rd2 $17 {was necessary.}) 26... Ne6 $19 {[%emt 0:00:26]} 27. Rf1 {[%emt 0:00:03]} a5 {[%emt 0:01:23]} 28. Qd2 {[%emt 0:00:47]} b5 {[%emt 0:05:09]} (28... Rb8 $19 {...b5 is the strong threat.} 29. h4 b5 30. Qxa5 b4) 29. Qxa5 $15 {[%emt 0:00:31]} Rb8 {[%emt 0:02:29][%cal Ob5b4] Strongly threatening ...b4!} 30. Qe1 {[%emt 0:01:03]} Qc7 {[%emt 0:02:23][%cal Ob5b4]} 31. Bd2 {[%emt 0:00:31]} Rc8 {[%emt 0:00:57][%cal Rc5c2]} 32. Bb4 $2 {[%emt 0:00:26]} (32. Rc1 $17 {was worth a try.}) 32... Rxe5 $19 {[%emt 0:00:42]} (32... Rxc2 33. Bd6 Qc6 34. Bxc2 Qxc2+ 35. Ka1) 33. Qh4 {[%emt 0:00:36]} Re4 {[%emt 0:00:46]} 34. Qf2 $17 {[%emt 0:00:30]} Rf4 {[%emt 0:02:04]} 35. Qd2 {[%emt 0:00:13]} Rxf1 {[%emt 0:02:58]} 36. Rxf1 {[%emt 0:00:02]} f4 {[%emt 0:00:11][%cal Bf5f4,Bf4f3,Bf3f2][%mdl 32]} 37. Bxg6 {[%emt 0:00:50]} fxg6 {[%emt 0:00:01]} 38. Qe2 {[%emt 0:00:01]} Nxg5 {[%emt 0:00:40] Hoping for ...f3.} 39. Rg1 $2 {[%emt 0:01:02][%mdl 8192]} (39. h4 $17 {is tougher.} Nf7 40. Qe4) 39... f3 $19 {[%emt 0:01:24]} 40. Qd3 {[%emt 0:00:47]} f2 {[%emt 0:01:21]} 41. Rf1 {[%emt 0:04:45]} Qxh2 {[%emt 0:05:25]} 42. Qxd4 {[%emt 0:03:31]} Nh3 {[%emt 0:06:51]} 43. Qd7 {[%emt 0:04:21]} Rc7 {[%emt 0:02:36]} ({Weaker is} 43... Qc7 44. Qxh3 Qxc2+ 45. Ka2 $11) 44. Qxb5 {[%emt 0:03:09]} ({But not} 44. Qd6 Qxd6 45. Bxd6 Rf7) 44... Kh7 {[%emt 0:03:10] Active counter play!} 45. a4 {[%emt 0:14:36]} (45. b3 $142 Qg2 46. Qe2) 45... Qg2 {[%emt 0:02:58] White must now prevent ...Rb7.} 46. Bc3 {[%emt 0:02:00]} Rb7 {[%emt 0:03:06]} 47. Qc4 {[%emt 0:01:07]} Qg4 {[%emt 0:00:51]} 48. Qc6 {[%emt 0:00:35]} (48. Qxg4 hxg4 49. Be5) 48... Rd7 {[%emt 0:01:34] aiming for ...Rd1+.} 49. Ka2 {[%emt 0:00:26]} Rf7 {[%emt 0:06:12]} ({Not} 49... Rd1 50. Rxd1 Qxd1 51. Qb7 $17) 50. a5 {[%emt 0:00:31]} Ng5 {[%emt 0:00:37]} 51. a6 {[%emt 0:00:34]} Qe2 {[%emt 0:00:27][%csl LRc2,LRf1]} 52. Qg2 {[%emt 0:00:31]} Qxa6+ {[%emt 0:00:36] Black mates.} 53. Kb1 {[%emt 0:00:01] [#]} Ne4 $1 {[%emt 0:00:12][%mdl 512]} 54. Be1 {[%emt 0:00:58] [#]} (54. Ba5 Qxa5) 54... Ra7 $1 {[%emt 0:01:36][%csl Ga7][%cal Ra6a1]} 55. c4 {[%emt 0:00:30]} Qa2+ {[%emt 0:00:00] Weighted Error Value: White=0.69/Black=0.29 (precise)} 0-1

[Event "FIDE CB Open 2022"]
[Site "Ceske Budejovice"]
[Date "2022.07.03"]
[Round "3.11"]
[White "Sykora, Ondrej"]
[Black "Maryasin, Boris"]
[Result "1/2-1/2"]
[ECO "B22"]
[WhiteElo "2099"]
[BlackElo "2260"]
[Annotator "TA"]
[PlyCount "84"]
[EventDate "2022.07.01"]
[EventType "swiss"]
[EventCountry "CZE"]
[SourceTitle "playchess.com"]
[Source "ChessBase"]
[SourceQuality "1"]
[TimeControl "40/5400+30:1800+30"]

{[%evp 14,84,29,0,0,3,3,-19,-16,-28,-36,-40,-10,-15,-11,-16,-23,-20,-14,-15,-16,-6,-12,-14,-13,-22,0,-15,0,0,0,0,0,0,25,0,39,39,35,3,29,17,16,-12,-3,-3,-18,-53,-62,-52,-43,-75,-31,-50,-53,-76,-17,-18,0,-42,-25,-63,79,-63,79,-23,8,-34,-18,-38,-51,-51,-63]} 1. e4 {[%emt 0:00:17]} c5 {[%emt 0:00:21]} 2. c3 {[%emt 0:00:06]} Nf6 {[%emt 0:00:16]} 3. e5 {[%emt 0:00:06]} Nd5 {[%emt 0:00:10]} 4. d4 {[%emt 0:00:19]} cxd4 {[%emt 0:00:12]} 5. Nf3 {[%emt 0:00:06]} e6 {[%emt 0:00:38]} 6. cxd4 {[%emt 0:00:52]} b6 {[%emt 0:00:57]} 7. Bd3 {[%emt 0:02:20]} Bb7 {[%emt 0:00:22]} 8. a3 {[%emt 0:00:24]} d6 {[%emt 0:00:28] B22: Sicilian: 2 c3.} 9. O-O {[%emt 0:00:22]} Nd7 {[%emt 0:00:36] [#]} 10. exd6 $146 {[%emt 0:01:33]} ({Predecessor:} 10. Re1 Be7 11. Nbd2 O-O 12. Ne4 dxe5 13. dxe5 Nc5 14. Nxc5 Bxc5 15. Bxh7+ Kxh7 16. Ng5+ Kg6 17. Qd3+ f5 18. exf6+ Kh6 19. Qh7# {1-0 (19) Bacrot,E (2642)-Astasio Lopez,D (2371) Chess.com INT 2022}) 10... Bxd6 {[%emt 0:00:15] The position is equal.} 11. Nc3 {[%emt 0:00:28]} Nxc3 {[%emt 0:00:41]} 12. bxc3 {[%emt 0:00:02]} Rc8 {[%emt 0:01:35]} 13. Bb2 {[%emt 0:02:26]} Qf6 {[%emt 0:01:19]} 14. Re1 {[%emt 0:02:11]} Bxf3 {[%emt 0:02:01]} 15. Qxf3 {[%emt 0:00:02]} Qxf3 {[%emt 0:00:12]} 16. gxf3 {[%emt 0:00:01]} O-O {[%emt 0:02:25]} 17. a4 {[%emt 0:05:04]} Nf6 {[%emt 0:02:04]} 18. c4 {[%emt 0:00:52] Inhibits Nd5.} Rfd8 {[%emt 0:00:45]} 19. Red1 {[%emt 0:03:49][%cal Be1d1,Bd1b1,Bb1b5][%mdl 32]} a5 {[%emt 0:05:23]} 20. Bf1 {[%emt 0:05:09]} Nd7 {[%emt 0:05:20]} 21. Bc3 {[%emt 0:07:02][%cal Bb2c3,Bc3d2,Bd2e3][%mdl 32]} e5 {[%emt 0:04:42]} 22. d5 {[%emt 0:01:06]} Nc5 {[%emt 0:01:05]} 23. Rdb1 {[%emt 0:03:03]} Bc7 {[%emt 0:02:14]} 24. Bd2 {[%emt 0:01:07]} (24. Rb5 $5 {[%cal Rc3a5]}) 24... Rd6 {[%emt 0:03:29]} 25. Be3 {[%emt 0:01:43]} Bd8 {[%emt 0:01:34]} 26. Rb5 {[%emt 0:01:33]} (26. Bh3 $5 {[%cal Rh3c8]} Nd7 27. Rc1 $14) 26... Nd7 {[%emt 0:00:54]} 27. Rc1 {[%emt 0:01:55]} f5 {[%emt 0:06:38]} 28. Ra1 {[%emt 0:04:10]} Rg6+ {[%emt 0:03:06]} 29. Kh1 {[%emt 0:00:09]} Bg5 {[%emt 0:00:20]} 30. Bd3 {[%emt 0:06:24]} Bxe3 {[%emt 0:04:24]} 31. fxe3 {[%emt 0:01:10]} Rf6 {[%emt 0:00:21]} 32. Bf1 {[%emt 0:01:26]} g5 {[%emt 0:04:14]} 33. Rb2 {[%emt 0:00:07]} Kf7 {[%emt 0:00:48]} 34. Rg2 {[%emt 0:00:48]} Rg6 {[%emt 0:00:51]} (34... Rg8 $17) 35. Bd3 $11 {[%emt 0:05:22]} Kf6 {[%emt 0:01:53]} 36. Rag1 {[%emt 0:03:59]} Rcg8 {[%emt 0:03:28]} 37. e4 {[%emt 0:00:00]} h6 {[%emt 0:00:00]} (37... f4 $15 {keeps the upper hand.}) 38. h3 {[%emt 0:00:00]} (38. exf5 $16 R6g7 39. Rg3) 38... h5 {[%emt 0:00:00]} (38... f4 $15 {stays ahead.}) 39. Rb1 {[%emt 0:00:00]} (39. exf5 $16 R6g7 40. Kh2) 39... g4 {[%emt 0:00:00]} (39... f4 $5 {[%cal Rg5g4]}) 40. hxg4 {[%emt 0:00:00]} hxg4 {[%emt 0:00:00]} 41. fxg4 {[%emt 0:14:05]} Rxg4 {[%emt 0:15:33]} 42. Rxg4 {[%emt 0:00:11]} Rxg4 {[%emt 0:00:04] Weighted Error Value: White=0.25 (precise) /Black=0.26 (precise)} 1/2-1/2

[Event "FIDE CB Open 2022"]
[Site "Ceske Budejovice"]
[Date "2022.07.03"]
[Round "3.12"]
[White "Abdulla, Khayala"]
[Black "Zilavy, Jan"]
[Result "1-0"]
[ECO "A43"]
[WhiteElo "2207"]
[BlackElo "2090"]
[Annotator "ChessBase"]
[PlyCount "47"]
[EventDate "2022.07.01"]
[EventType "swiss"]
[EventCountry "CZE"]
[SourceTitle "playchess.com"]
[Source "ChessBase"]
[SourceQuality "1"]
[TimeControl "40/5400+30:1800+30"]

1. d4 {[%emt 0:00:21]} Nf6 {[%emt 0:00:44]} 2. Nf3 {[%emt 0:00:16]} g6 {[%emt 0:00:49]} 3. Nc3 {[%emt 0:00:36]} Bg7 {[%emt 0:03:34]} 4. e4 {[%emt 0:00:22]} d6 {[%emt 0:00:13]} 5. Be2 {[%emt 0:01:06]} O-O {[%emt 0:00:14]} 6. O-O {[%emt 0:00:46]} c5 {[%emt 0:02:29]} 7. d5 {[%emt 0:09:08]} e6 {[%emt 0:08:43]} 8. dxe6 {[%emt 0:03:22]} Bxe6 {[%emt 0:02:00]} 9. Bg5 {[%emt 0:05:17]} Qb6 {[%emt 0:09:10]} 10. Qd2 {[%emt 0:02:55]} Na6 {[%emt 0:06:22]} 11. Rfd1 {[%emt 0:02:52]} Rad8 {[%emt 0:02:47]} 12. Qf4 {[%emt 0:09:07]} Nh5 {[%emt 0:20:06]} 13. Bxd8 {[%emt 0:02:33]} Rxd8 {[%emt 0:02:15]} 14. Qd2 {[%emt 0:13:43]} Qxb2 {[%emt 0:03:06]} 15. e5 {[%emt 0:02:05]} Ra8 {[%emt 0:18:37]} 16. Rab1 {[%emt 0:06:00]} Qa3 {[%emt 0:00:09]} 17. Nb5 {[%emt 0:00:42]} Qa4 {[%emt 0:01:51]} 18. Nxd6 {[%emt 0:00:26]} b6 {[%emt 0:02:35]} 19. Bb5 {[%emt 0:06:37]} Qa3 {[%emt 0:00:19]} 20. Nc4 {[%emt 0:00:54]} Bxc4 {[%emt 0:00:24]} 21. Bxc4 {[%emt 0:00:06]} Nb4 {[%emt 0:01:44]} 22. c3 {[%emt 0:09:45]} b5 {[%emt 0:00:28]} 23. Bxf7+ {[%emt 0:00:23]} Kxf7 {[%emt 0:00:08]} 24. cxb4 {[%emt 0:00:05]} 1-0

[Event "FIDE CB Open 2022"]
[Site "Ceske Budejovice"]
[Date "2022.07.03"]
[Round "3.13"]
[White "Valantiejus, Vaidotas"]
[Black "Mostbauer, Maximilian"]
[Result "1/2-1/2"]
[ECO "B11"]
[WhiteElo "2062"]
[BlackElo "2192"]
[Annotator "RC"]
[PlyCount "24"]
[EventDate "2022.07.01"]
[EventType "swiss"]
[EventCountry "CZE"]
[SourceTitle "playchess.com"]
[Source "ChessBase"]
[SourceQuality "1"]
[TimeControl "40/5400+30:1800+30"]

1. e4 {[%emt 0:00:05]} c6 {[%emt 0:00:04]} 2. Nc3 {[%emt 0:00:47]} d5 {[%emt 0:01:04]} 3. Nf3 {[%emt 0:00:11]} dxe4 {[%emt 0:02:27]} 4. Nxe4 {[%emt 0:00:06]} Nf6 {[%emt 0:03:43]} 5. Qe2 {[%emt 0:00:19]} Nxe4 {[%emt 0:10:52]} 6. Qxe4 {[%emt 0:00:03]} Nd7 {[%emt 0:00:36]} 7. Bc4 {[%emt 0:00:20]} Nf6 {[%emt 0:04:06]} 8. Ne5 {[%emt 0:00:19]} e6 {[%emt 0:03:18]} 9. Qe2 {[%emt 0:00:12]} Bd6 {[%emt 0:04:33]} 10. d4 {[%emt 0:01:31]} Qc7 {[%emt 0:04:45]} 11. O-O {[%emt 0:01:38]} O-O {[%emt 0:11:04]} 12. Bf4 {[%emt 0:06:21]} Nd5 {[%emt 0:03:12]} 1/2-1/2

[Event "FIDE CB Open 2022"]
[Site "Ceske Budejovice"]
[Date "2022.07.03"]
[Round "3.14"]
[White "Borkovec, Milan"]
[Black "Blumel, Otto"]
[Result "1/2-1/2"]
[ECO "B29"]
[WhiteElo "2188"]
[BlackElo "1855"]
[Annotator "RC"]
[PlyCount "32"]
[EventDate "2022.07.01"]
[EventType "swiss"]
[EventCountry "CZE"]
[SourceTitle "playchess.com"]
[Source "ChessBase"]
[SourceQuality "1"]
[TimeControl "40/5400+30:1800+30"]

1. e4 {[%emt 0:00:08]} c5 {[%emt 0:00:38]} 2. Nf3 {[%emt 0:00:11]} Nf6 {[%emt 0:00:18]} 3. Nc3 {[%emt 0:01:42]} Nc6 {[%emt 0:00:17]} 4. d4 {[%emt 0:00:22]} d5 {[%emt 0:00:25]} 5. exd5 {[%emt 0:01:03]} Nxd5 {[%emt 0:00:07]} 6. dxc5 {[%emt 0:00:55]} Nxc3 {[%emt 0:00:52]} 7. Qxd8+ {[%emt 0:00:12]} Kxd8 {[%emt 0:06:03]} 8. bxc3 {[%emt 0:01:00]} f6 {[%emt 0:00:10]} 9. Be3 {[%emt 0:01:19]} e5 {[%emt 0:00:17]} 10. Bc4 {[%emt 0:10:07]} Kc7 {[%emt 0:01:11]} 11. Nd2 {[%emt 0:04:15]} Bf5 {[%emt 0:07:35]} 12. O-O-O {[%emt 0:01:37]} Rd8 {[%emt 0:01:52]} 13. Nb1 {[%emt 0:01:17]} Be7 {[%emt 0:02:56]} 14. Na3 {[%emt 0:00:37]} a6 {[%emt 0:01:27]} 15. Bd5 {[%emt 0:03:13]} Na5 {[%emt 0:02:33]} 16. Rd2 {[%emt 0:34:59]} Kb8 {[%emt 0:05:22]} 1/2-1/2

[Event "FIDE CB Open 2022"]
[Site "Ceske Budejovice"]
[Date "2022.07.03"]
[Round "3.15"]
[White "Vybiral, Zdenek"]
[Black "Zauner, Christoph"]
[Result "1/2-1/2"]
[ECO "C18"]
[WhiteElo "2143"]
[BlackElo "1963"]
[Annotator "ChessBase"]
[PlyCount "58"]
[EventDate "2022.07.01"]
[EventType "swiss"]
[EventCountry "CZE"]
[SourceTitle "playchess.com"]
[Source "ChessBase"]
[SourceQuality "1"]
[TimeControl "40/5400+30:1800+30"]

1. e4 {[%emt 0:00:12]} e6 {[%emt 0:00:10]} 2. d4 {[%emt 0:00:06]} d5 {[%emt 0:00:13]} 3. Nc3 {[%emt 0:00:16]} Bb4 {[%emt 0:00:09]} 4. e5 {[%emt 0:00:05]} Ne7 {[%emt 0:00:09]} 5. a3 {[%emt 0:00:05]} Bxc3+ {[%emt 0:00:56]} 6. bxc3 {[%emt 0:00:05]} c5 {[%emt 0:00:09]} 7. Qg4 {[%emt 0:00:19]} O-O {[%emt 0:02:07]} 8. Bd3 {[%emt 0:00:24]} Nbc6 {[%emt 0:00:26]} 9. Qh5 {[%emt 0:01:14]} Ng6 {[%emt 0:00:17]} 10. Nf3 {[%emt 0:00:32]} Qc7 {[%emt 0:09:09]} 11. Be3 {[%emt 0:01:10]} c4 {[%emt 0:00:22]} 12. Bxg6 {[%emt 0:00:15]} fxg6 {[%emt 0:00:09]} 13. Qg4 {[%emt 0:00:55]} Qf7 {[%emt 0:02:54]} 14. Ng5 {[%emt 0:02:00]} Qe8 {[%emt 0:03:23]} 15. h4 {[%emt 0:03:20]} b5 {[%emt 0:12:06]} 16. Kd2 {[%emt 0:16:13]} Bd7 {[%emt 0:08:59]} 17. h5 {[%emt 0:29:02]} h6 {[%emt 0:02:40]} 18. Nh3 {[%emt 0:00:27]} g5 {[%emt 0:03:34]} 19. f4 {[%emt 0:01:41]} gxf4 {[%emt 0:02:49]} 20. Nxf4 {[%emt 0:00:21]} Ne7 {[%emt 0:14:56]} 21. Ng6 {[%emt 0:14:26]} Nxg6 {[%emt 0:16:32]} 22. hxg6 {[%emt 0:00:30]} Qe7 {[%emt 0:00:30]} 23. Bxh6 {[%emt 0:00:30]} gxh6 {[%emt 0:01:05]} 24. Rxh6 {[%emt 0:19:06]} Rf2+ {[%emt 0:00:30]} 25. Ke3 {[%emt 0:00:30]} Rxc2 {[%emt 0:00:30]} 26. Rah1 {[%emt 0:00:30]} Rxc3+ {[%emt 0:00:30]} 27. Kd2 {[%emt 0:00:30]} Rd3+ {[%emt 0:00:30]} 28. Ke2 {[%emt 0:00:30]} Re3+ {[%emt 0:00:30]} 29. Kd2 {[%emt 0:00:30]} Rd3+ {[%emt 0:01:18]} 1/2-1/2

[Event "FIDE CB Open 2022"]
[Site "Ceske Budejovice"]
[Date "2022.07.03"]
[Round "3.16"]
[White "Sudrich, Radek"]
[Black "Bartos, Jan"]
[Result "1/2-1/2"]
[ECO "A81"]
[WhiteElo "2049"]
[BlackElo "2142"]
[Annotator "NA RC"]
[PlyCount "39"]
[EventDate "2022.07.01"]
[EventType "swiss"]
[EventCountry "CZE"]
[SourceTitle "playchess.com"]
[Source "ChessBase"]
[SourceQuality "1"]
[TimeControl "40/5400+30:1800+30"]

1. d4 {[%emt 0:00:05]} f5 {[%emt 0:00:06]} 2. g3 {[%emt 0:01:30]} Nf6 {[%emt 0:00:11]} 3. Bg2 {[%emt 0:00:09]} g6 {[%emt 0:00:40]} 4. c3 {[%emt 0:01:33]} Bg7 {[%emt 0:00:11]} 5. Nd2 {[%emt 0:01:43]} Nc6 {[%emt 0:01:33]} 6. e4 {[%emt 0:01:35]} fxe4 {[%emt 0:06:18]} 7. Nxe4 {[%emt 0:03:04]} O-O {[%emt 0:01:13]} 8. Nxf6+ {[%emt 0:00:50]} exf6 {[%emt 0:00:40]} 9. Qb3+ {[%emt 0:04:35]} Kh8 {[%emt 0:01:10]} 10. Ne2 {[%emt 0:00:12]} b6 {[%emt 0:05:09]} 11. O-O {[%emt 0:05:37]} Bb7 {[%emt 0:01:06]} 12. Qc2 {[%emt 0:02:18]} Na5 {[%emt 0:02:00]} 13. d5 {[%emt 0:06:29]} Nc4 {[%emt 0:08:15]} 14. b3 {[%emt 0:04:58]} Nd6 {[%emt 0:07:26]} 15. Ba3 {[%emt 0:09:17]} Re8 {[%emt 0:01:23]} 16. Rad1 {[%emt 0:03:48]} f5 {[%emt 0:02:27]} 17. Nd4 {[%emt 0:10:42]} Qf6 {[%emt 0:06:02]} 18. Bxd6 {[%emt 0:05:21]} cxd6 {[%emt 0:03:42]} 19. Qd2 {[%emt 0:04:03]} a6 {[%emt 0:05:18]} 20. Rfe1 {[%emt 0:01:51]} 1/2-1/2

[Event "FIDE CB Open 2022"]
[Site "Ceske Budejovice"]
[Date "2022.07.03"]
[Round "3.17"]
[White "Slaby, Matej"]
[Black "Dotzer, Lukas"]
[Result "1/2-1/2"]
[ECO "A48"]
[WhiteElo "1796"]
[BlackElo "2269"]
[Annotator "RC"]
[PlyCount "29"]
[EventDate "2022.07.01"]
[EventType "swiss"]
[EventCountry "CZE"]
[SourceTitle "playchess.com"]
[Source "ChessBase"]
[SourceQuality "1"]
[TimeControl "40/5400+30:1800+30"]

1. Nf3 {[%emt 0:00:06]} Nf6 {[%emt 0:00:07]} 2. d4 {[%emt 0:00:18]} g6 {[%emt 0:00:21]} 3. Bf4 {[%emt 0:00:07]} Bg7 {[%emt 0:00:09]} 4. e3 {[%emt 0:00:13]} O-O {[%emt 0:01:08]} 5. h3 {[%emt 0:00:05]} c5 {[%emt 0:01:41]} 6. c3 {[%emt 0:00:48]} Qb6 {[%emt 0:02:21]} 7. Qb3 {[%emt 0:00:25]} Qxb3 {[%emt 0:01:56]} 8. axb3 {[%emt 0:00:10]} cxd4 {[%emt 0:01:20]} 9. exd4 {[%emt 0:00:18]} d6 {[%emt 0:01:54]} 10. Bd3 {[%emt 0:00:30]} Nbd7 {[%emt 0:05:10]} 11. O-O {[%emt 0:00:34]} e5 {[%emt 0:04:40]} 12. dxe5 {[%emt 0:00:29]} Nd5 {[%emt 0:01:14]} 13. Bh2 {[%emt 0:06:51]} dxe5 {[%emt 0:02:03]} 14. Re1 {[%emt 0:01:22]} Re8 {[%emt 0:09:44]} 15. Nbd2 {[%emt 0:07:04]} 1/2-1/2

[Event "FIDE CB Open 2022"]
[Site "Ceske Budejovice"]
[Date "2022.07.03"]
[Round "3.18"]
[White "Simek, Petr"]
[Black "Hosnedl, Matyas"]
[Result "1-0"]
[ECO "A57"]
[WhiteElo "2348"]
[BlackElo "1967"]
[Annotator "ChessBase"]
[PlyCount "69"]
[EventDate "2022.07.01"]
[EventType "swiss"]
[EventCountry "CZE"]
[SourceTitle "playchess.com"]
[Source "ChessBase"]
[SourceQuality "1"]
[TimeControl "40/5400+30:1800+30"]

1. d4 {[%emt 0:00:09]} Nf6 {[%emt 0:00:18]} 2. c4 {[%emt 0:00:07]} c5 {[%emt 0:00:21]} 3. d5 {[%emt 0:00:07]} b5 {[%emt 0:00:19]} 4. cxb5 {[%emt 0:00:05]} a6 {[%emt 0:00:08]} 5. bxa6 {[%emt 0:00:04]} g6 {[%emt 0:00:22]} 6. Nc3 {[%emt 0:00:07]} Bg7 {[%emt 0:00:09]} 7. e4 {[%emt 0:00:07]} O-O {[%emt 0:00:21]} 8. a7 {[%emt 0:00:08]} Rxa7 {[%emt 0:01:24]} 9. Nf3 {[%emt 0:00:18]} Ba6 {[%emt 0:09:07]} 10. Bxa6 {[%emt 0:00:47]} Rxa6 {[%emt 0:00:07]} 11. O-O {[%emt 0:02:17]} d6 {[%emt 0:00:24]} 12. Re1 {[%emt 0:10:39]} Nbd7 {[%emt 0:00:18]} 13. a4 {[%emt 0:00:14]} Qa8 {[%emt 0:02:53]} 14. Ra3 {[%emt 0:05:44]} Rb8 {[%emt 0:03:52]} 15. Qc2 {[%emt 0:01:17]} Ng4 {[%emt 0:06:47]} 16. Bd2 {[%emt 0:06:55]} Nge5 {[%emt 0:02:56]} 17. Nxe5 {[%emt 0:00:14]} Nxe5 {[%emt 0:00:09]} 18. Nb5 {[%emt 0:00:18]} Rc8 {[%emt 0:01:55]} 19. Bc3 {[%emt 0:19:44]} Nc4 {[%emt 0:10:17]} 20. Ra2 {[%emt 0:00:17]} Nb6 {[%emt 0:00:40]} 21. Bxg7 {[%emt 0:09:30]} Kxg7 {[%emt 0:00:14]} 22. Rea1 {[%emt 0:00:08]} c4 {[%emt 0:02:49]} 23. Qc3+ {[%emt 0:06:59]} Kg8 {[%emt 0:03:29]} 24. a5 {[%emt 0:00:27]} Rc5 {[%emt 0:06:46]} 25. Nd4 {[%emt 0:00:52]} Nd7 {[%emt 0:00:24]} 26. Ra4 {[%emt 0:05:16]} Nb6 {[%emt 0:02:36]} 27. R4a3 {[%emt 0:00:25]} Nd7 {[%emt 0:00:08]} 28. Ra4 {[%emt 0:09:11]} Nb6 {[%emt 0:03:34]} 29. R4a3 {[%emt 0:00:13]} Nd7 {[%emt 0:00:20]} 30. h3 {[%emt 0:00:10]} Nf6 {[%emt 0:02:30]} 31. f3 {[%emt 0:01:14]} Nd7 {[%emt 0:00:50]} 32. Kh2 {[%emt 0:00:27]} Ne5 {[%emt 0:00:12]} 33. Ra4 {[%emt 0:03:08]} Qc8 {[%emt 0:07:06]} 34. f4 {[%emt 0:01:59]} Nd3 {[%emt 0:01:03]} 35. b4 {[%emt 0:02:14]} 1-0